bitfinex/quotes_SOLUSD_20220218
["timestamp","ask_amount","ask_price","bid_price","bid_amount"]
[1645175974434,15.6525,95.91,95.85,0.31857316]
[1645175974839,17.13228876,95.91,95.85,0.31857316]
[1645175975234,15.6525,95.91,95.85,0.31857316]
[1645175977438,17.13228876,95.91,95.85,0.31857316]
[1645175977836,15.6525,95.91,95.85,0.31857316]
[1645175978737,17.13228876,95.91,95.85,0.31857316]
[1645175979138,15.6525,95.91,95.85,0.31857316]
[1645175981042,53.46804765,95.907,95.85,0.31857316]
[1645175981242,15.6553,95.9,95.85,0.31857316]
[1645175985444,53.46804765,95.907,95.851,7.8443831]
[1645175985645,53.46804765,95.907,95.852,48.53070896]
[1645175985870,53.46804765,95.907,95.853,5.214]
[1645175986271,53.46804765,95.907,95.854,24.1016]
[1645175986470,53.46804765,95.907,95.855,5.214]
[1645175986867,53.46804765,95.907,95.854,24.1016]
[1645175988871,1.47978876,95.924,95.854,24.1016]
[1645175989071,1.47978876,95.925,95.854,24.1016]
[1645175989273,1.47978876,95.928,95.854,24.1016]
[1645175989673,1.47978876,95.925,95.854,24.1016]
[1645175989876,52.4418853,95.924,95.854,24.1016]
[1645175990574,15.65,95.92,95.854,24.1016]
[1645175994676,17.12978876,95.92,95.854,24.1016]
[1645175995481,1.47978876,95.919,95.854,24.1016]
[1645175995678,15.6517,95.91,95.854,24.1016]
[1645175996478,50.75134591,95.909,95.854,24.1016]
[1645175996879,15.6532,95.9,95.854,24.1016]
[1645176000484,1.47978876,95.905,95.855,46.13049319]
[1645176000686,50.75134591,95.909,95.855,46.13049319]
[1645176000894,50.75134591,95.909,95.855,48.75987629]
[1645176001095,50.75134591,95.909,95.854,24.1016]
[1645176001495,15.6535,95.9,95.854,24.1016]
[1645176004296,17.13328876,95.9,95.854,24.1016]
[1645176005223,17.13328876,95.9,95.85,0.31857316]
[1645176005622,15.6565,95.89,95.85,0.31857316]
[1645176006222,42.62563295,95.889,95.85,0.31857316]
[1645176007826,15.6563,95.88,95.85,0.31857316]
[1645176011929,42.62563295,95.889,95.85,0.31857316]
[1645176015334,15.6566,95.88,95.85,0.31857316]
[1645176016434,1.47978876,95.879,95.85,0.31857316]
[1645176016635,15.6622,95.87,95.85,0.31857316]
[1645176016837,41.23998456,95.869,95.85,0.31857316]
[1645176025742,15.6561,95.89,95.85,0.31857316]
[1645176025743,17.13588876,95.89,95.85,0.31857316]
[1645176026143,15.6561,95.89,95.85,0.31857316]
[1645176026546,15.6569,95.88,95.85,0.31857316]
[1645176042387,1.47978876,95.877,95.85,0.31857316]
[1645176042588,42.81361818,95.869,95.85,0.31857316]
[1645176043989,41.81361818,95.869,95.85,0.31857316]
[1645176046191,1.47978876,95.881,95.85,0.31857316]
[1645176046593,1.47978876,95.892,95.85,2.94795626]
[1645176046992,1.47978876,95.894,95.85,2.94795626]
[1645176047194,47.23642105,95.894,95.851,45.78353768]
[1645176047396,1.47978876,95.896,95.851,45.78353768]
[1645176047595,1.47978876,95.902,95.852,27.5974831]
[1645176047795,1.47978876,95.905,95.852,27.5974831]
[1645176047993,1.47978876,95.91,95.853,2.6293831]
[1645176048595,55.22788586,95.909,95.853,2.6293831]
[1645176048794,55.22788586,95.909,95.854,29.65781283]
[1645176049195,55.22788586,95.909,95.853,2.6293831]
[1645176051397,55.22788586,95.909,95.852,21.37209438]
[1645176052796,55.22788586,95.909,95.853,5.214]
[1645176052999,55.22788586,95.909,95.852,21.37209438]
[1645176053197,1.47978876,95.908,95.852,21.37209438]
[1645176053397,1.47978876,95.907,95.852,21.37209438]
[1645176055001,1.47978876,95.908,95.852,21.37209438]
[1645176055802,55.22788586,95.909,95.852,21.37209438]
[1645176055999,55.22788586,95.909,95.852,26.58609438]
[1645176056605,1.47978876,95.908,95.852,26.58609438]
[1645176056800,1.47978876,95.908,95.852,21.37209438]
[1645176057602,56.70767462,95.909,95.852,21.37209438]
[1645176058201,1.47978876,95.908,95.852,21.37209438]
[1645176058400,1.47978876,95.899,95.852,21.37209438]
[1645176058601,1.47978876,95.9,95.852,21.37209438]
[1645176058902,1.47978876,95.897,95.852,21.37209438]
[1645176059101,15.6548,95.89,95.852,21.37209438]
[1645176060205,1.47978876,95.897,95.852,21.37209438]
[1645176061208,1.47978876,95.898,95.852,21.37209438]
[1645176061606,15.6531,95.9,95.852,21.37209438]
[1645176061806,1.47978876,95.901,95.852,21.37209438]
[1645176062409,1.47978876,95.903,95.852,21.37209438]
[1645176063106,1.47978876,95.902,95.852,21.37209438]
[1645176063509,1.47978876,95.904,95.852,21.37209438]
[1645176063706,1.47978876,95.903,95.852,21.37209438]
[1645176063906,1.47978876,95.905,95.852,21.37209438]
[1645176064107,1.47978876,95.906,95.852,21.37209438]
[1645176064530,1.47978876,95.905,95.852,21.37209438]
[1645176064731,1.47978876,95.907,95.852,21.37209438]
[1645176065432,1.47978876,95.908,95.852,21.37209438]
[1645176065634,15.6517,95.91,95.852,21.37209438]
[1645176066234,17.13148876,95.91,95.852,21.37209438]
[1645176066435,1.47978876,95.906,95.852,21.37209438]
[1645176067034,1.47978876,95.907,95.852,21.37209438]
[1645176067234,1.47978876,95.909,95.852,21.37209438]
[1645176067839,1.47978876,95.907,95.852,21.37209438]
[1645176068238,1.47978876,95.908,95.852,21.37209438]
[1645176068639,1.47978876,95.905,95.852,21.37209438]
[1645176070640,1.47978876,95.904,95.852,21.37209438]
[1645176071041,47.34694377,95.913,95.852,21.37209438]
[1645176071042,1.47978876,95.894,95.852,21.37209438]
[1645176071243,51.89667692,95.893,95.852,21.37209438]
[1645176071441,1.47978876,95.891,95.852,21.37209438]
[1645176071641,1.47978876,95.89,95.852,21.37209438]
[1645176072042,1.47978876,95.89,95.85,0.31857316]
[1645176072043,17.13548876,95.89,95.85,0.31857316]
[1645176073346,1.47978876,95.889,95.85,0.31857316]
[1645176074344,1.47978876,95.888,95.85,0.31857316]
[1645176074546,1.47978876,95.889,95.85,0.31857316]
[1645176074745,1.47978876,95.885,95.85,0.31857316]
[1645176075046,1.47978876,95.884,95.85,0.31857316]
[1645176076248,15.6557,95.89,95.85,0.31857316]
[1645176076446,17.13548876,95.89,95.85,0.31857316]
[1645176076947,1.47978876,95.887,95.85,0.31857316]
[1645176077847,1.47978876,95.888,95.85,0.31857316]
[1645176078049,55.09399319,95.888,95.85,0.31857316]
[1645176079847,1.47978876,95.888,95.85,0.31857316]
[1645176080256,1.47978876,95.889,95.85,0.31857316]
[1645176081049,1.47978876,95.888,95.85,0.31857316]
[1645176081850,15.6557,95.89,95.85,0.31857316]
[1645176082456,1.47978876,95.892,95.85,0.31857316]
[1645176082654,1.47978876,95.896,95.85,0.31857316]
[1645176082854,1.47978876,95.895,95.85,0.31857316]
[1645176083053,1.47978876,95.896,95.85,0.31857316]
[1645176083276,1.47978876,95.895,95.85,0.31857316]
[1645176083456,1.47978876,95.894,95.85,0.31857316]
[1645176083654,1.47978876,95.895,95.85,0.31857316]
[1645176083855,1.47978876,95.894,95.85,0.31857316]
[1645176084256,1.47978876,95.892,95.85,0.31857316]
[1645176086057,1.47978876,95.891,95.85,0.31857316]
[1645176086457,15.6549,95.89,95.85,0.31857316]
[1645176086660,17.13468876,95.89,95.85,0.31857316]
[1645176086957,45.72694366,95.886,95.85,0.31857316]
[1645176087758,47.20673242,95.886,95.85,0.31857316]
[1645176087960,1.47978876,95.884,95.85,0.31857316]
[1645176088159,1.47978876,95.889,95.85,0.31857316]
[1645176088361,1.47978876,95.89,95.85,0.31857316]
[1645176089059,44.36827819,95.889,95.85,0.31857316]
[1645176089258,45.84806695,95.889,95.85,0.31857316]
[1645176091062,1.47978876,95.889,95.85,0.31857316]
[1645176091258,1.47978876,95.886,95.85,0.31857316]
[1645176091462,1.47978876,95.885,95.85,0.31857316]
[1645176092661,1.47978876,95.883,95.85,0.31857316]
[1645176093866,1.47978876,95.882,95.85,0.31857316]
[1645176094066,41.37608848,95.886,95.85,0.31857316]
[1645176094067,1.47978876,95.877,95.85,0.31857316]
[1645176095568,1.47978876,95.876,95.85,0.31857316]
[1645176096171,1.47978876,95.877,95.85,0.31857316]
[1645176096368,1.47978876,95.876,95.85,0.31857316]
[1645176096768,48.16699756,95.875,95.85,0.31857316]
[1645176097269,49.64678632,95.875,95.85,0.31857316]
[1645176098069,1.47978876,95.868,95.85,0.31857316]
[1645176098690,1.47978876,95.872,95.85,0.31857316]
[1645176098884,1.47978876,95.871,95.85,0.31857316]
[1645176099284,1.47978876,95.869,95.85,0.31857316]
[1645176099486,1.47978876,95.872,95.85,0.31857316]
[1645176101486,1.47978876,95.876,95.85,0.31857316]
[1645176101687,1.47978876,95.881,95.85,0.31857316]
[1645176101888,1.47978876,95.886,95.85,0.31857316]
[1645176102487,1.47978876,95.887,95.85,0.31857316]
[1645176103291,1.47978876,95.889,95.85,0.31857316]
[1645176103991,1.47978876,95.888,95.85,0.31857316]
[1645176104394,1.47978876,95.886,95.85,0.31857316]
[1645176104790,44.56220427,95.885,95.85,0.31857316]
[1645176104992,1.47978876,95.884,95.85,0.31857316]
[1645176105591,1.47978876,95.883,95.85,0.31857316]
[1645176106396,1.47978876,95.884,95.85,0.31857316]
[1645176108799,1.47978876,95.881,95.85,0.31857316]
[1645176109003,1.47978876,95.88,95.85,0.31857316]
[1645176109598,1.47978876,95.881,95.85,0.31857316]
[1645176110901,1.47978876,95.882,95.85,0.31857316]
[1645176111508,1.47978876,95.881,95.85,0.31857316]
[1645176111702,1.47978876,95.881,95.842,21.85417316]
[1645176113310,1.47978876,95.88,95.842,21.85417316]
[1645176113509,41.19206136,95.879,95.842,21.85417316]
[1645176115709,1.47978876,95.878,95.842,21.85417316]
[1645176115910,42.67185012,95.879,95.842,21.85417316]
[1645176116210,1.47978876,95.879,95.842,21.85417316]
[1645176116410,1.47978876,95.878,95.842,21.85417316]
[1645176117409,1.47978876,95.879,95.842,21.85417316]
[1645176117610,1.47978876,95.881,95.842,21.85417316]
[1645176117810,15.63428876,95.9,95.842,21.85417316]
[1645176118011,15.63428876,95.9,95.843,5.215]
[1645176119712,15.63428876,95.9,95.842,21.85417316]
[1645176119911,5.93427499,95.899,95.842,21.85417316]
[1645176121114,15.63428876,95.9,95.842,21.85417316]
[1645176121312,15.63428876,95.9,95.843,5.215]
[1645176124115,15.63428876,95.9,95.842,21.85417316]
[1645176124720,15.63428876,95.9,95.843,5.215]
[1645176125120,13.63428876,95.9,95.843,5.215]
[1645176127522,13.63428876,95.9,95.842,21.85417316]
[1645176128123,5.93300731,95.899,95.842,21.85417316]
[1645176128324,50.98557633,95.889,95.842,21.85417316]
[1645176130825,15.6548,95.89,95.842,21.85417316]
[1645176134165,56.10726615,95.89,95.842,21.85417316]
[1645176135357,15.6548,95.89,95.842,21.85417316]
[1645176136660,15.6548,95.89,95.843,5.215]
[1645176139259,15.6548,95.89,95.842,21.85417316]
[1645176142564,15.6548,95.89,95.843,5.215]
[1645176147870,15.6548,95.89,95.842,21.85417316]
[1645176149171,15.6548,95.89,95.843,5.215]
[1645176151512,15.6548,95.89,95.842,21.85417316]
[1645176157923,15.6548,95.89,95.843,5.215]
[1645176159023,15.6548,95.89,95.842,21.85417316]
[1645176159224,5.93322168,95.889,95.842,21.85417316]
[1645176159425,15.6568,95.88,95.842,21.85417316]
[1645176169961,15.6568,95.88,95.829,0.44972196]
[1645176170161,5.93394125,95.879,95.829,0.44972196]
[1645176170361,15.6607,95.87,95.829,0.44972196]
[1645176170561,5.93394125,95.869,95.829,0.44972196]
[1645176170964,2.95537789,95.876,95.829,0.44972196]
[1645176171163,43.99591925,95.875,95.829,0.44972196]
[1645176171369,5.93394125,95.874,95.829,0.44972196]
[1645176172366,54.78588873,95.859,95.829,0.44972196]
[1645176173065,2.95537789,95.878,95.829,0.44972196]
[1645176173266,2.95537789,95.881,95.83,5.216]
[1645176173470,2.95537789,95.892,95.83,5.216]
[1645176173666,2.95537789,95.893,95.83,5.216]
[1645176173867,5.93381808,95.891,95.831,24.7919]
[1645176174072,48.66887762,95.894,95.832,46.20743845]
[1645176174266,5.93381808,95.893,95.832,46.20743845]
[1645176174466,15.6574,95.88,95.832,46.20743845]
[1645176179470,40.52510851,95.879,95.832,46.20743845]
[1645176180469,15.6574,95.88,95.832,46.20743845]
[1645176183072,5.93441911,95.879,95.831,24.7919]
[1645176183271,5.93441911,95.879,95.829,0.44972196]
[1645176183272,15.6608,95.87,95.829,0.44972196]
[1645176183674,5.93441911,95.869,95.829,0.44972196]
[1645176183976,2.95537789,95.875,95.829,0.44972196]
[1645176184173,2.95537789,95.877,95.829,0.44972196]
[1645176184375,5.93491665,95.874,95.829,0.44972196]
[1645176184673,5.93491665,95.873,95.829,0.44972196]
[1645176184873,2.95537789,95.878,95.829,0.44972196]
[1645176185173,15.6612,95.86,95.829,0.44972196]
[1645176197215,15.6612,95.86,95.83,5.216]
[1645176197417,15.6612,95.86,95.829,0.44972196]
[1645176209131,5.93555341,95.859,95.829,0.44972196]
[1645176209330,15.6633,95.85,95.829,0.44972196]
[1645176209638,50.93090146,95.849,95.829,0.44972196]
[1645176210431,15.664,95.84,95.829,0.44972196]
[1645176211033,15.664,95.84,95.83,3.03219997]
[1645176211430,15.6606,95.86,95.83,3.03219997]
[1645176212034,51.2092361,95.859,95.83,3.03219997]
[1645176212438,52.209,95.87,95.83,3.03219997]
[1645176212637,5.93486771,95.869,95.83,3.03219997]
[1645176213338,15.6619,95.85,95.83,3.03219997]
[1645176214338,15.6619,95.85,95.829,0.44972196]
[1645176214737,0.501,108.79,95.829,0.44972196]
[1645176214738,2.95537789,95.876,95.829,0.44972196]
[1645176215037,2.95537789,95.877,95.829,0.44972196]
[1645176215236,2.95537789,95.876,95.83,5.215]
[1645176215536,2.95537789,95.879,95.83,5.215]
[1645176215740,2.95537789,95.884,95.831,2.6293831]
[1645176215938,2.95537789,95.889,95.832,5.216]
[1645176216136,2.95537789,95.89,95.832,5.216]
[1645176216439,2.95537789,95.893,95.833,2.6293831]
[1645176216637,2.95537789,95.893,95.834,44.18347668]
[1645176216840,2.95537789,95.894,95.834,49.39847668]
[1645176217444,15.6556,95.89,95.834,49.39847668]
[1645176217645,5.93370835,95.889,95.834,49.39847668]
[1645176218547,15.6556,95.89,95.834,49.39847668]
[1645176218746,52.1852,95.91,95.834,49.39847668]
[1645176218747,2.95537789,95.899,95.835,106.9293831]
[1645176219048,2.95537789,95.921,95.841,104.3]
[1645176219246,2.95537789,95.923,95.843,104.3]
[1645176219446,2.95537789,95.926,95.843,109.71]
[1645176219651,2.95537789,95.927,95.843,109.71]
[1645176219849,2.95537789,95.938,95.845,104.3]
[1645176220047,2.95537789,95.948,95.846,5.213]
[1645176220250,2.95537789,95.955,95.861,104.3]
[1645176220648,40.62832154,95.954,95.863,149.62507264]
[1645176220852,5.92999018,95.953,95.863,149.62507264]
[1645176221050,5.92999018,95.953,95.865,104.3]
[1645176221252,5.92999018,95.953,95.866,5.213]
[1645176221452,5.92999018,95.953,95.881,104.3]
[1645176221750,5.92999018,95.953,95.883,104.3]
[1645176221949,40.62832154,95.954,95.883,104.3]
[1645176222179,40.62832154,95.954,95.884,5.212]
[1645176223286,40.62832154,95.954,95.883,109.512]
[1645176223480,15.6456,95.95,95.883,5.212]
[1645176223680,15.6456,95.95,95.882,23.0648]
[1645176226286,5.93128824,95.949,95.882,23.0648]
[1645176226483,15.6502,95.93,95.882,23.0648]
[1645176232592,15.6502,95.93,95.883,5.213]
[1645176233087,15.6463,95.95,95.883,5.213]
[1645176235491,15.6463,95.95,95.882,23.0648]
[1645176237998,1.46947054,95.933,95.882,23.0648]
[1645176238197,1.46947054,95.933,95.883,104.3]
[1645176238398,1.46947054,95.938,95.883,109.513]
[1645176238800,1.46947054,95.937,95.883,5.213]
[1645176238998,1.46947054,95.938,95.883,5.213]
[1645176239200,1.46947054,95.937,95.883,5.213]
[1645176239400,1.46947054,95.938,95.882,23.0648]
[1645176239604,1.46947054,95.936,95.883,5.213]
[1645176239802,1.46947054,95.934,95.883,5.213]
[1645176240000,15.6482,95.93,95.882,23.0648]
[1645176240405,1.46947054,95.929,95.882,23.0648]
[1645176240600,1.46947054,95.928,95.882,23.0648]
[1645176241425,1.46947054,95.929,95.882,23.0648]
[1645176241823,1.46947054,95.93,95.882,23.0648]
[1645176242023,1.46947054,95.924,95.882,23.0648]
[1645176242226,1.46947054,95.927,95.882,23.0648]
[1645176242424,1.46947054,95.923,95.882,23.0648]
[1645176242626,1.46947054,95.926,95.882,23.0648]
[1645176242827,1.46947054,95.927,95.882,23.0648]
[1645176243425,1.46947054,95.926,95.882,23.0648]
[1645176243626,1.46947054,95.924,95.882,23.0648]
[1645176244325,1.46947054,95.922,95.882,23.0648]
[1645176244526,1.46947054,95.921,95.882,23.0648]
[1645176244725,1.46947054,95.917,95.882,23.0648]
[1645176245326,1.46947054,95.916,95.882,23.0648]
[1645176246026,1.46947054,95.917,95.882,23.0648]
[1645176246624,1.46947054,95.914,95.882,23.0648]
[1645176247026,1.46947054,95.913,95.882,23.0648]
[1645176247429,1.46947054,95.91,95.882,23.0648]
[1645176247630,1.46947054,95.909,95.882,23.0648]
[1645176247930,1.46947054,95.914,95.883,5.213]
[1645176248132,1.46947054,95.917,95.883,5.213]
[1645176248429,1.46947054,95.917,95.882,23.0648]
[1645176248629,1.46947054,95.907,95.882,23.0648]
[1645176249134,1.46947054,95.908,95.882,23.0648]
[1645176250629,1.46947054,95.907,95.882,23.0648]
[1645176251430,1.46947054,95.909,95.882,23.0648]
[1645176251831,1.46947054,95.908,95.882,23.0648]
[1645176252031,1.46947054,95.906,95.882,23.0648]
[1645176252231,1.46947054,95.905,95.882,23.0648]
[1645176252431,1.46947054,95.899,95.882,23.0648]
[1645176252632,1.46947054,95.9,95.882,23.0648]
[1645176252832,1.46947054,95.899,95.882,23.0648]
[1645176253233,1.46947054,95.897,95.882,23.0648]
[1645176253635,1.46947054,95.899,95.882,23.0648]
[1645176253835,1.46947054,95.901,95.882,23.0648]
[1645176254237,1.46947054,95.902,95.882,23.0648]
[1645176254636,1.46947054,95.901,95.882,23.0648]
[1645176255437,1.46947054,95.907,95.882,23.0648]
[1645176256239,1.46947054,95.908,95.883,104.3]
[1645176256438,1.46947054,95.914,95.883,109.513]
[1645176256639,1.46947054,95.918,95.883,109.513]
[1645176256838,1.46947054,95.921,95.883,109.513]
[1645176257941,1.46947054,95.921,95.883,5.213]
[1645176258144,1.46947054,95.92,95.883,5.213]
[1645176258345,1.46947054,95.915,95.882,23.0648]
[1645176259041,1.46947054,95.914,95.882,23.0648]
[1645176259642,1.46947054,95.91,95.882,23.0648]
[1645176259842,1.46947054,95.909,95.882,23.0648]
[1645176260644,1.46947054,95.908,95.882,23.0648]
[1645176260845,1.46947054,95.907,95.882,23.0648]
[1645176261646,1.46947054,95.906,95.882,23.0648]
[1645176261945,1.46947054,95.911,95.882,23.0648]
[1645176262147,1.46947054,95.914,95.883,5.213]
[1645176262349,1.46947054,95.915,95.883,5.213]
[1645176262547,5.9307531,95.939,95.883,5.213]
[1645176262548,1.46947054,95.916,95.883,5.213]
[1645176262747,1.46947054,95.918,95.883,5.213]
[1645176263049,1.46947054,95.92,95.883,5.213]
[1645176263249,1.46947054,95.919,95.883,5.213]
[1645176263450,1.46947054,95.918,95.883,5.213]
[1645176264050,1.46947054,95.913,95.883,5.213]
[1645176264251,1.46947054,95.913,95.882,23.0648]
[1645176264453,1.46947054,95.914,95.882,23.0648]
[1645176264653,1.46947054,95.912,95.882,23.0648]
[1645176264852,1.46947054,95.909,95.882,23.0648]
[1645176265053,5.9307531,95.939,95.882,23.0648]
[1645176265054,1.46947054,95.908,95.882,23.0648]
[1645176265552,1.46947054,95.904,95.882,23.0648]
[1645176266154,1.46947054,95.903,95.882,23.0648]
[1645176266954,1.46947054,95.902,95.882,23.0648]
[1645176267371,1.46947054,95.901,95.882,23.0648]
[1645176267971,1.46947054,95.9,95.882,23.0648]
[1645176268171,1.46947054,95.899,95.882,23.0648]
[1645176268572,1.46947054,95.9,95.882,23.0648]
[1645176270772,1.46947054,95.899,95.882,23.0648]
[1645176271075,1.46947054,95.9,95.882,23.0648]
[1645176271673,1.46947054,95.902,95.882,23.0648]
[1645176272673,1.46947054,95.901,95.882,23.0648]
[1645176272872,1.46947054,95.9,95.882,23.0648]
[1645176273473,1.46947054,95.901,95.882,23.0648]
[1645176273673,1.46947054,95.9,95.882,23.0648]
[1645176273875,1.46947054,95.901,95.882,23.0648]
[1645176274075,1.46947054,95.9,95.882,23.0648]
[1645176274880,1.46947054,95.901,95.882,23.0648]
[1645176275279,1.46947054,95.903,95.882,23.0648]
[1645176276782,1.46947054,95.904,95.882,23.0648]
[1645176276980,1.46947054,95.903,95.882,23.0648]
[1645176278282,1.46947054,95.904,95.882,23.0648]
[1645176278682,1.46947054,95.903,95.882,23.0648]
[1645176278884,1.46947054,95.904,95.882,23.0648]
[1645176279087,1.46947054,95.903,95.882,23.0648]
[1645176280088,1.46947054,95.902,95.882,23.0648]
[1645176281086,1.46947054,95.903,95.882,23.0648]
[1645176281287,1.46947054,95.902,95.882,23.0648]
[1645176282285,1.46947054,95.903,95.882,23.0648]
[1645176282588,1.46947054,95.901,95.882,23.0648]
[1645176282786,1.46947054,95.9,95.882,23.0648]
[1645176283888,1.46947054,95.903,95.882,23.0648]
[1645176284888,1.46947054,95.901,95.882,23.0648]
[1645176285088,1.46947054,95.903,95.882,23.0648]
[1645176285888,1.46947054,95.903,95.9,3.0]
[1645176286289,1.46947054,95.903,95.901,3.03219997]
[1645176288088,1.46947054,95.902,95.901,3.03219997]
[1645176288490,1.46947054,95.902,95.9,3.0]
[1645176290391,1.46947054,95.901,95.9,3.0]
[1645176290791,1.46947054,95.902,95.9,3.0]
[1645176291191,1.46947054,95.901,95.9,3.0]
[1645176291791,1.46947054,95.902,95.9,3.0]
[1645176291994,1.46947054,95.901,95.9,3.0]
[1645176293095,5.93121363,95.919,95.9,3.0]
[1645176294195,1.48025132,95.903,95.9,3.0]
[1645176294395,1.48025132,95.901,95.9,3.0]
[1645176295197,2.95537789,95.927,95.9,3.0]
[1645176295395,1.4804679,95.901,95.9,3.0]
[1645176295594,1.4804679,95.901,95.9,6.03219997]
[1645176296897,1.4804679,95.902,95.9,6.03219997]
[1645176297703,1.4804679,95.901,95.9,6.03219997]
[1645176298101,1.4804679,95.902,95.9,6.03219997]
[1645176299702,1.4804679,95.903,95.9,6.03219997]
[1645176300103,1.4804679,95.902,95.9,6.03219997]
[1645176300307,1.4804679,95.903,95.9,6.03219997]
[1645176300506,1.4804679,95.902,95.9,6.03219997]
[1645176302125,2.95537789,95.927,95.9,6.03219997]
[1645176302325,1.48023814,95.903,95.9,6.03219997]
[1645176302524,1.48023814,95.905,95.9,6.03219997]
[1645176302724,1.48023814,95.903,95.9,6.03219997]
[1645176302927,1.48023814,95.901,95.9,6.03219997]
[1645176303426,1.48023814,95.902,95.9,6.03219997]
[1645176303624,1.48023814,95.903,95.9,6.03219997]
[1645176303827,1.48023814,95.905,95.9,6.03219997]
[1645176304024,1.48023814,95.904,95.9,6.03219997]
[1645176304425,1.48023814,95.905,95.9,6.03219997]
[1645176304828,1.48023814,95.907,95.9,6.03219997]
[1645176305530,1.48023814,95.906,95.9,6.03219997]
[1645176305728,1.48023814,95.905,95.9,6.03219997]
[1645176306429,1.48023814,95.903,95.9,6.03219997]
[1645176306630,1.48023814,95.903,95.9,3.0]
[1645176306829,1.48023814,95.901,95.9,3.0]
[1645176307629,1.48023814,95.902,95.9,3.0]
[1645176308036,1.48023814,95.903,95.9,3.0]
[1645176308832,1.48023814,95.909,95.9,3.0]
[1645176309131,1.48023814,95.915,95.905,1.48023813]
[1645176309332,1.48023814,95.916,95.906,42.4869573]
[1645176309731,5.930989,95.939,95.906,42.4869573]
[1645176309732,1.48023814,95.917,95.906,42.4869573]
[1645176309931,1.48023814,95.917,95.907,3.03219997]
[1645176310736,1.48023814,95.919,95.907,3.03219997]
[1645176311936,1.48023814,95.92,95.907,3.03219997]
[1645176312839,1.48023814,95.922,95.907,3.03219997]
[1645176313436,2.95537789,95.949,95.907,3.03219997]
[1645176313437,1.48023814,95.928,95.908,2.6293831]
[1645176313637,1.48023814,95.93,95.908,5.212]
[1645176313839,5.93093714,95.959,95.908,5.212]
[1645176313840,1.48023814,95.931,95.91,104.3]
[1645176314039,1.48023814,95.931,95.911,5.211]
[1645176314241,1.48023814,95.934,95.911,5.211]
[1645176314841,1.48023814,95.934,95.91,5.212]
[1645176315141,1.48023814,95.935,95.91,5.212]
[1645176315339,1.48023814,95.936,95.91,5.212]
[1645176316644,1.48023814,95.938,95.91,5.212]
[1645176318351,1.48023814,95.939,95.91,5.212]
[1645176318951,1.48023814,95.937,95.91,5.212]
[1645176319351,1.48023814,95.934,95.909,22.8905]
[1645176319574,1.48023814,95.933,95.909,22.8905]
[1645176320373,1.48023814,95.935,95.909,22.8905]
[1645176320573,1.48023814,95.936,95.91,5.211]
[1645176321172,1.48023814,95.939,95.91,109.511]
[1645176321374,1.48023814,95.942,95.91,5.211]
[1645176321672,1.48023814,95.948,95.91,5.211]
[1645176322274,1.48023814,95.946,95.91,5.211]
[1645176322476,1.48023814,95.945,95.91,5.211]
[1645176322976,1.48023814,95.946,95.91,5.211]
[1645176323379,1.48023814,95.947,95.91,5.211]
[1645176324078,1.48023814,95.951,95.91,5.211]
[1645176324776,1.48023814,95.949,95.91,5.211]
[1645176325178,1.48023814,95.948,95.91,5.211]
[1645176325579,1.48023814,95.949,95.91,5.211]
[1645176326478,1.48023814,95.949,95.911,2.6293831]
[1645176326678,1.48023814,95.949,95.912,5.212]
[1645176326880,1.48023814,95.948,95.911,5.212]
[1645176327084,1.48023814,95.948,95.91,5.212]
[1645176327281,1.48023814,95.946,95.91,5.212]
[1645176328485,1.48023814,95.947,95.91,5.212]
[1645176329384,5.92973134,95.969,95.91,5.212]
[1645176329385,1.48023814,95.95,95.91,109.512]
[1645176329985,1.48023814,95.952,95.91,109.512]
[1645176330185,1.48023814,95.951,95.91,109.512]
[1645176330988,0.008,95.911,95.91,109.512]
[1645176334290,1.48023814,95.957,95.923,0.012]
[1645176334589,1.48023814,95.957,95.924,5.211]
[1645176334788,1.48023814,95.958,95.923,0.012]
[1645176334990,1.48023814,95.959,95.923,0.012]
[1645176335191,1.48023814,95.958,95.923,0.012]
[1645176335790,1.48023814,95.957,95.923,0.012]
[1645176336893,1.48023814,95.956,95.923,0.012]
[1645176337091,1.48023814,95.957,95.923,0.012]
[1645176337894,1.48023814,95.956,95.923,0.012]
[1645176338297,1.48023814,95.955,95.923,0.012]
[1645176338694,1.48023814,95.956,95.923,0.012]
[1645176338897,1.48023814,95.954,95.923,0.012]
[1645176339100,1.48023814,95.951,95.923,0.012]
[1645176339296,1.48023814,95.95,95.923,0.012]
[1645176339498,1.48023814,95.953,95.923,0.012]
[1645176341200,1.48023814,95.952,95.923,0.012]
[1645176341400,1.48023814,95.953,95.923,0.012]